bitfinex-derivatives/quotes_BTCF0:USTF0_20260104
["timestamp","ask_amount","ask_price","bid_price","bid_amount"]
[1767529380212,0.10892614,91290.0,91280.0,0.01096]
[1767529380417,0.1075348,91288.0,91280.0,0.01096]
[1767529380913,0.1075348,91288.0,91278.0,0.09316]
[1767529381515,0.01051669,91287.0,91278.0,0.10412]
[1767529381717,0.1075348,91286.0,91278.0,0.09316]
[1767529382218,0.09701811,91284.0,91278.0,0.09316]
[1767529382720,0.09701811,91284.0,91278.0,0.10412]
[1767529383821,0.09701811,91284.0,91279.0,0.01096]
[1767529385525,0.09701811,91284.0,91277.0,0.01096]
[1767529386624,0.09701811,91284.0,91274.0,0.01096]
[1767529387022,0.09701811,91281.0,91270.0,0.09316]
[1767529387221,0.1075348,91279.0,91270.0,0.010961]
[1767529387727,0.09701811,91279.0,91270.0,0.010961]
[1767529387920,0.09701811,91279.0,91271.0,0.010961]
[1767529388127,0.09701811,91279.0,91276.0,0.01096]
[1767529388327,1.1e-07,91279.0,91277.0,0.01096]
[1767529388528,0.01051669,91282.0,91277.0,0.01096]
[1767529388828,0.00016425,91284.0,91277.0,0.01096]
[1767529391534,0.00016425,91284.0,91278.0,0.01096]
[1767529391830,2.5e-07,91284.0,91270.0,0.010961]
[1767529392026,0.09316,91291.0,91286.0,0.010959]
[1767529392226,0.10367669,91295.0,91286.0,0.010959]
[1767529392427,0.02590623,91294.0,91288.0,0.010959]
[1767529392626,0.10367669,91295.0,91286.0,0.010959]
[1767529392931,0.02590623,91294.0,91286.0,0.010959]
[1767529393133,0.10367669,91295.0,91286.0,0.010959]
[1767529393433,0.02590626,91294.0,91286.0,0.010959]
[1767529393735,0.10367669,91295.0,91286.0,0.010959]
[1767529393924,0.02590626,91294.0,91286.0,0.010959]
[1767529394124,0.10367669,91295.0,91286.0,0.010959]
[1767529394324,0.02590639,91294.0,91286.0,0.010959]
[1767529394530,0.10367669,91295.0,91286.0,0.010959]
[1767529394829,0.02590639,91294.0,91286.0,0.010959]
[1767529395030,0.10367669,91295.0,91286.0,0.010959]
[1767529395228,0.02590652,91294.0,91286.0,0.010959]
[1767529395435,0.01051669,91298.0,91286.0,0.010959]
[1767529395632,0.02590677,91297.0,91280.0,0.010408]
[1767529395937,0.09316,91302.0,91287.0,0.010408]
[1767529396125,0.0259077,91301.0,91287.0,0.010408]
[1767529396326,0.0259077,91300.0,91287.0,0.010408]
[1767529396524,0.09316,91302.0,91286.0,0.09085379]
[1767529396525,0.0259077,91299.0,91290.0,0.010958]
[1767529396731,0.0259077,91298.0,91290.0,0.010958]
[1767529397029,0.09316,91302.0,91288.0,0.010959]
[1767529397236,0.02591133,91301.0,91288.0,0.010959]
[1767529397537,0.02591133,91300.0,91288.0,0.010959]
[1767529397739,0.02591133,91299.0,91288.0,0.010959]
[1767529397936,0.02591133,91298.0,91285.0,0.01112334]
[1767529398138,0.010957,91300.0,91285.0,0.01112334]
[1767529398340,0.02591155,91299.0,91285.0,0.01112334]
[1767529398543,0.02591155,91298.0,91287.0,0.010959]
[1767529398833,0.02147369,91301.0,91287.0,0.010959]
[1767529399039,0.02591143,91300.0,91287.0,0.010959]
[1767529399234,0.02591143,91299.0,91287.0,0.010959]
[1767529399437,0.02147369,91301.0,91287.0,0.010959]
[1767529399736,0.02591163,91300.0,91287.0,0.010959]
[1767529400041,0.02147369,91301.0,91287.0,0.010959]
[1767529400042,0.02591163,91299.0,91287.0,0.010959]
[1767529400237,0.104117,91302.0,91288.0,0.010959]
[1767529400437,0.02588009,91301.0,91290.0,0.010959]
[1767529400737,0.010956,91310.0,91297.0,0.010958]
[1767529400929,0.02588272,91309.0,91297.0,0.010958]
[1767529401128,0.010956,91312.0,91297.0,0.010958]
[1767529401339,0.02587445,91311.0,91297.0,0.010958]
[1767529401533,0.02587445,91310.0,91297.0,0.010958]
[1767529401734,0.010956,91312.0,91295.0,0.010408]
[1767529401933,0.09316,91314.0,91295.0,0.010408]
[1767529401934,0.03683045,91311.0,91297.0,0.010958]
[1767529402138,0.02587445,91310.0,91300.0,0.010957]
[1767529402339,0.10797311,91317.0,91300.0,0.010957]
[1767529402340,0.010956,91315.0,91300.0,0.010957]
[1767529402642,0.02586814,91314.0,91300.0,0.010957]
[1767529402840,0.02586814,91313.0,91300.0,0.010957]
[1767529403041,0.010956,91315.0,91302.0,0.010957]
[1767529403231,0.09316,91316.0,91302.0,0.010957]
[1767529403232,0.02586807,91314.0,91302.0,0.010957]
[1767529403437,0.02586807,91313.0,91302.0,0.010957]
[1767529403636,0.01051669,91315.0,91302.0,0.010957]
[1767529403850,0.02586207,91314.0,91302.0,0.010957]
[1767529404042,0.02586207,91313.0,91302.0,0.010957]
[1767529404245,0.01051669,91315.0,91302.0,0.010957]
[1767529404435,0.02585675,91314.0,91302.0,0.010957]
[1767529404634,0.01051669,91315.0,91302.0,0.010957]
[1767529404834,0.02585675,91314.0,91302.0,0.010957]
[1767529405037,0.01051669,91315.0,91302.0,0.010957]
[1767529405637,0.01051669,91315.0,91304.0,0.010957]
[1767529406542,0.010955,91321.0,91306.0,0.010956]
[1767529406743,0.02575474,91320.0,91306.0,0.010956]
[1767529406939,0.02575474,91319.0,91306.0,0.010956]
[1767529407139,0.010955,91322.0,91306.0,0.010956]
[1767529407341,0.02574883,91321.0,91306.0,0.010956]
[1767529407646,0.02574883,91320.0,91306.0,0.010956]
[1767529407849,0.01051669,91321.0,91306.0,0.010956]
[1767529408051,0.01051669,91319.0,91306.0,0.010956]
[1767529408351,0.09316,91323.0,91310.0,0.010956]
[1767529408547,0.02574401,91322.0,91310.0,0.010956]
[1767529408848,0.10367669,91323.0,91310.0,0.010956]
[1767529409043,0.02574363,91322.0,91310.0,0.010956]
[1767529409243,0.10367669,91323.0,91307.0,0.010956]
[1767529409444,0.02573858,91322.0,91307.0,0.010956]
[1767529409647,0.02573858,91321.0,91309.0,0.010956]
[1767529409848,0.02573858,91320.0,91309.0,0.010956]
[1767529410049,0.02573858,91319.0,91309.0,0.010956]
[1767529410238,0.02573858,91318.0,91309.0,0.010956]
[1767529410540,0.02573858,91317.0,91309.0,0.010956]
[1767529410740,0.10367669,91323.0,91309.0,0.010956]
[1767529410944,0.02573537,91322.0,91309.0,0.010956]
[1767529411250,0.02573537,91321.0,91309.0,0.010956]
[1767529411549,0.02573537,91320.0,91309.0,0.010956]
[1767529411742,0.02573537,91319.0,91309.0,0.010956]
[1767529411942,0.10367669,91323.0,91309.0,0.010956]
[1767529412142,0.0257327,91322.0,91309.0,0.010956]
[1767529412337,0.0257327,91321.0,91304.0,0.010408]
[1767529412541,0.01051669,91323.0,91310.0,0.010956]
[1767529412751,0.02572877,91322.0,91310.0,0.010956]
[1767529412950,0.02572877,91321.0,91310.0,0.010956]
[1767529413149,0.01051669,91323.0,91310.0,0.010956]
[1767529413351,0.03594419,91322.0,91310.0,0.010956]
[1767529413553,0.02572511,91321.0,91310.0,0.010956]
[1767529413849,0.01021908,91322.0,91310.0,0.010956]
[1767529414053,0.02572508,91321.0,91310.0,0.010956]
[1767529414352,0.02572508,91321.0,91303.0,0.09101813]
[1767529414353,0.20075732,91326.0,91312.0,0.010956]
[1767529414649,0.02572216,91325.0,91312.0,0.010956]
[1767529414846,0.02572216,91324.0,91312.0,0.010956]
[1767529415153,0.02572216,91323.0,91312.0,0.010956]
[1767529415353,0.02572216,91322.0,91312.0,0.010956]
[1767529415652,0.20075732,91326.0,91312.0,0.010956]
[1767529415653,0.010954,91325.0,91312.0,0.010956]
[1767529415853,0.02571982,91324.0,91312.0,0.010956]
[1767529416038,0.09701811,91326.0,91312.0,0.010956]
[1767529416039,0.02571982,91323.0,91312.0,0.010956]
[1767529416244,0.09701811,91326.0,91312.0,0.010956]
[1767529416445,0.02571798,91325.0,91312.0,0.010956]
[1767529416651,0.02571798,91324.0,91312.0,0.010956]
[1767529416951,0.02571798,91323.0,91312.0,0.010956]
[1767529417150,0.10797211,91326.0,91312.0,0.010956]
[1767529417347,0.02571781,91325.0,91312.0,0.010956]
[1767529417542,0.01057921,91329.0,91306.0,0.09502774]
[1767529417543,0.02153321,91329.0,91316.0,0.010955]
[1767529417748,0.0257232,91328.0,91316.0,0.010955]
[1767529417948,0.0257232,91327.0,91316.0,0.010955]
[1767529418247,0.104114,91331.0,91316.0,0.010955]
[1767529418452,0.010954,91329.0,91316.0,0.010955]
[1767529418651,0.02572272,91328.0,91316.0,0.010955]
[1767529418867,0.010954,91329.0,91316.0,0.010955]
[1767529419158,0.02153321,91326.0,91313.0,0.010956]
[1767529419348,0.01057921,91326.0,91315.0,0.010956]
[1767529419946,0.010954,91328.0,91315.0,0.010956]
[1767529420250,0.02153321,91328.0,91315.0,0.010956]
[1767529421459,0.01057921,91328.0,91307.0,0.11489939]
[1767529421659,0.09316,91331.0,91320.0,0.010955]
[1767529422454,0.01057921,91335.0,91323.0,0.010955]
[1767529422656,0.02153221,91340.0,91320.0,0.01078339]
[1767529422842,0.02153221,91340.0,91328.0,0.010954]
[1767529423046,0.02572655,91339.0,91325.0,0.010954]
[1767529423260,0.02153221,91340.0,91325.0,0.010954]
[1767529423460,0.010953,91340.0,91327.0,0.010954]
[1767529423658,0.010952,91343.0,91329.0,0.010954]
[1767529424761,0.01057921,91344.0,91331.0,0.010954]
[1767529425059,0.01057921,91344.0,91328.0,0.010954]
[1767529425060,0.02153121,91344.0,91328.0,0.010954]
[1767529425249,0.01057921,91344.0,91330.0,0.010954]
[1767529425654,0.10644174,91344.0,91330.0,0.010954]
[1767529425855,0.01057921,91343.0,91330.0,0.010954]
[1767529427960,0.01057921,91343.0,91332.0,0.010953]
[1767529429564,0.01057921,91343.0,91334.0,0.010953]
[1767529431966,0.01057921,91347.0,91327.0,0.02173739]
[1767529432269,0.02573629,91346.0,91328.0,0.01078339]
[1767529432453,0.01057921,91347.0,91328.0,0.01078339]
[1767529432651,0.010952,91348.0,91327.0,0.10598174]
[1767529432652,0.03631682,91346.0,91327.0,0.10598174]
[1767529432854,0.02153121,91346.0,91327.0,0.09502774]
[1767529433063,0.01057921,91343.0,91331.0,0.010953]
[1767529433654,0.01057921,91343.0,91329.0,0.010954]
[1767529434572,0.01057921,91343.0,91331.0,0.010954]
[1767529437572,0.010952,91342.0,91325.0,0.00016425]
[1767529437868,0.010952,91342.0,91329.0,0.010954]
[1767529440770,0.01057921,91343.0,91325.0,0.00016425]
[1767529441070,0.02153121,91343.0,91325.0,0.00016425]
[1767529441392,0.00929907,91341.0,91329.0,0.010954]
[1767529441772,0.010953,91340.0,91328.0,0.010954]
[1767529442269,0.00929907,91341.0,91325.0,0.00016425]
[1767529442270,0.00929907,91341.0,91330.0,0.010954]
[1767529442656,0.00929907,91332.0,91317.0,0.010955]
[1767529442862,0.010954,91325.0,91318.0,0.09312]
[1767529443062,0.010954,91325.0,91309.0,0.09993142]
[1767529443063,0.00929907,91326.0,91315.0,0.09312]
[1767529443371,0.00929907,91326.0,91315.0,0.104076]
[1767529443774,0.00929907,91326.0,91316.0,0.010955]
[1767529443969,0.00929907,91326.0,91318.0,0.010955]
[1767529444167,0.09654967,91328.0,91318.0,0.010955]
[1767529444874,0.09654967,91328.0,91314.0,0.09312]
[1767529445172,0.00929907,91330.0,91314.0,0.09312]
[1767529446175,0.00929907,91330.0,91321.0,0.010955]
[1767529446481,0.11680174,91333.0,91321.0,0.010955]
[1767529446966,0.00929907,91332.0,91321.0,0.010955]
[1767529447770,0.00929907,91332.0,91322.0,0.010955]
[1767529448178,0.00929907,91332.0,91324.0,0.010954]
[1767529448378,0.09654967,91333.0,91314.0,0.10284706]
[1767529448676,0.09654967,91333.0,91325.0,0.010954]
[1767529448886,0.09654967,91333.0,91326.0,0.010954]
[1767529449479,0.10584874,91333.0,91326.0,0.010954]
[1767529450065,0.10584874,91333.0,91314.0,0.10284706]
[1767529450066,0.10584874,91333.0,91322.0,0.010955]
[1767529450266,0.00929907,91332.0,91319.0,0.010955]
[1767529450471,0.00929907,91329.0,91314.0,0.09312]
[1767529450669,0.00929907,91329.0,91319.0,0.010955]
[1767529451076,0.10750267,91333.0,91319.0,0.010955]
[1767529451271,0.00929907,91332.0,91319.0,0.010955]
[1767529452482,0.02025307,91332.0,91319.0,0.010955]
[1767529452778,0.00929907,91331.0,91319.0,0.010955]
[1767529454280,0.02025307,91331.0,91319.0,0.010955]
[1767529455172,0.02025307,91331.0,91316.0,0.010955]
[1767529455373,0.02025307,91330.0,91316.0,0.010955]
[1767529455682,0.00929907,91329.0,91316.0,0.010955]
[1767529456580,0.00929907,91329.0,91314.0,0.09312]
[1767529456781,0.00929907,91329.0,91318.0,0.010955]
[1767529457783,0.010954,91330.0,91318.0,0.010955]
[1767529458183,0.02025307,91330.0,91318.0,0.010955]
[1767529458970,0.00929907,91324.0,91314.0,0.09312]
[1767529459886,0.10584874,91327.0,91314.0,0.09312]
[1767529460278,0.10584874,91327.0,91317.0,0.010955]
[1767529462990,0.10584874,91327.0,91314.0,0.09312]
[1767529463294,0.10584874,91327.0,91318.0,0.010955]
[1767529463484,0.10584874,91327.0,91319.0,0.010955]
[1767529463685,0.10584874,91327.0,91321.0,0.010955]
[1767529465387,0.10584874,91332.0,91321.0,0.010955]
[1767529465583,0.00929907,91331.0,91321.0,0.010955]
[1767529465891,0.00929907,91330.0,91321.0,0.010955]
[1767529466792,0.00929907,91330.0,91322.0,0.010955]
[1767529470495,0.00929907,91330.0,91314.0,0.09312]
[1767529471579,0.00929907,91330.0,91321.0,0.010955]
[1767529471988,0.00929907,91330.0,91318.0,0.010955]
[1767529472194,0.00905364,91325.0,91314.0,0.09312]
[1767529472490,0.010955,91323.0,91314.0,0.09312]
[1767529472689,0.00905364,91324.0,91314.0,0.09312]
[1767529473298,0.09893069,91325.0,91314.0,0.104076]
[1767529473493,0.00905364,91327.0,91315.0,0.010955]
[1767529473697,0.11805012,91330.0,91317.0,0.010955]
[1767529474089,0.10709612,91330.0,91318.0,0.010955]
[1767529474483,0.10709612,91330.0,91319.0,0.010955]
[1767529474692,0.10709612,91330.0,91317.0,0.010955]
[1767529475096,0.11805012,91330.0,91317.0,0.010955]
[1767529475494,0.010954,91328.0,91314.0,0.104076]
[1767529477195,0.00961721,91329.0,91314.0,0.104076]
[1767529478396,0.00961721,91329.0,91316.0,0.010955]
[1767529478601,0.10843291,91330.0,91318.0,0.010955]
[1767529479490,0.09747891,91330.0,91318.0,0.010955]
[1767529483508,0.09747891,91330.0,91320.0,0.010955]
[1767529483706,0.09747891,91336.0,91324.0,0.010954]
[1767529483904,0.02646416,91335.0,91324.0,0.010954]
[1767529484108,0.02646416,91334.0,91324.0,0.010954]
[1767529484307,0.09747891,91336.0,91324.0,0.010954]
[1767529484609,0.02646344,91335.0,91324.0,0.010954]
[1767529484908,4.4e-07,91334.0,91327.0,0.00969493]
[1767529485105,0.09312,91342.0,91327.0,0.00969493]
[1767529485708,0.09312,91342.0,91330.0,0.010954]
[1767529487008,0.104072,91342.0,91330.0,0.010954]
[1767529488406,0.09312,91342.0,91330.0,0.010954]
[1767529488905,0.09312,91342.0,91332.0,0.010953]
[1767529489895,0.00961721,91344.0,91332.0,0.010953]
[1767529490306,0.02056921,91344.0,91332.0,0.010953]
[1767529491806,0.00961721,91348.0,91329.0,0.00969493]
[1767529493111,0.10709612,91351.0,91332.0,0.00969493]
[1767529493314,0.20021612,91351.0,91332.0,0.00969493]
[1767529494220,0.010952,91347.0,91334.0,0.010953]
[1767529494403,0.010952,91345.0,91334.0,0.010953]
[1767529494909,0.010952,91345.0,91332.0,0.02064793]
[1767529495109,0.010952,91347.0,91333.0,0.010953]
[1767529495509,0.010952,91347.0,91334.0,0.00969493]
[1767529495901,0.010952,91347.0,91334.0,0.02064793]
[1767529496106,0.010952,91347.0,91334.0,0.010953]
[1767529496507,0.010952,91347.0,91335.0,0.010953]
[1767529497211,0.02647841,91346.0,91335.0,0.010953]
[1767529497513,0.02647841,91345.0,91335.0,0.010953]
[1767529497709,0.02647841,91344.0,91335.0,0.010953]
[1767529497910,0.02647841,91343.0,91335.0,0.010953]
[1767529498106,0.02647841,91342.0,91337.0,0.010953]
[1767529498310,0.010951,91352.0,91339.0,0.02064793]
[1767529498511,0.010951,91352.0,91339.0,0.010953]
[1767529499711,0.010951,91352.0,91326.0,0.104074]
[1767529499712,0.09312,91356.0,91338.0,0.00969493]
[1767529500205,0.010951,91354.0,91338.0,0.00969493]
[1767529500407,0.010951,91356.0,91343.0,0.010952]
[1767529501013,0.0092183,91355.0,91340.0,0.010952]
[1767529501212,0.0092183,91350.0,91334.0,0.010953]
[1767529501428,0.0201703,91347.0,91334.0,0.010953]
[1767529501614,0.010952,91344.0,91332.0,0.010953]
[1767529501815,0.010952,91343.0,91326.0,0.18388286]
[1767529502113,0.010953,91339.0,91326.0,0.104074]
[1767529502411,0.0092183,91339.0,91327.0,0.09312]
[1767529502614,0.0092183,91339.0,91328.0,0.010954]
[1767529502916,0.11023354,91341.0,91329.0,0.010954]
[1767529503314,0.09928054,91341.0,91330.0,0.010954]
[1767529503614,0.09928054,91341.0,91332.0,0.010953]
[1767529503812,0.0092183,91342.0,91333.0,0.010953]
[1767529504014,0.0092183,91345.0,91333.0,0.010953]
[1767529504318,0.010952,91343.0,91331.0,0.010953]
[1767529505017,0.0092183,91345.0,91334.0,0.010953]
[1767529505413,0.0201703,91348.0,91329.0,0.00995408]
[1767529505613,0.0201703,91348.0,91327.0,0.09312]
[1767529505614,0.010952,91348.0,91332.0,0.00995408]
[1767529505812,0.010952,91348.0,91336.0,0.010953]
[1767529506517,0.010652,91348.0,91336.0,0.010953]
[1767529508124,0.010952,91347.0,91333.0,0.01111725]
[1767529508421,0.09928054,91349.0,91333.0,0.00016425]
[1767529508622,0.010952,91345.0,91333.0,0.00016425]
[1767529508827,0.010953,91340.0,91333.0,0.00016425]
[1767529509620,0.0092183,91342.0,91333.0,0.00016425]
[1767529510806,0.0092183,91339.0,91327.0,0.09312]
[1767529511114,0.0092183,91339.0,91327.0,0.104074]
[1767529511620,0.09928054,91340.0,91327.0,0.104074]
[1767529512019,0.09928054,91340.0,91330.0,0.010954]
[1767529512220,0.010953,91341.0,91330.0,0.010954]
[1767529512619,0.010953,91341.0,91327.0,0.104074]
[1767529512821,0.010953,91341.0,91329.0,0.010954]
[1767529513119,0.010953,91340.0,91329.0,0.010954]
[1767529513625,0.010952,91344.0,91327.0,0.09312]
[1767529513922,0.010952,91344.0,91333.0,0.010953]
[1767529514722,0.010952,91344.0,91331.0,0.010953]
[1767529514924,0.010952,91342.0,91331.0,0.010953]
[1767529515316,0.010952,91344.0,91332.0,0.010953]
[1767529515825,0.00016425,91347.0,91329.0,0.00995408]
[1767529516120,0.00016425,91347.0,91336.0,0.010953]
[1767529517010,0.00016425,91347.0,91337.0,0.010953]
[1767529517317,0.010951,91350.0,91337.0,0.010953]
[1767529517529,0.02635099,91349.0,91337.0,0.010953]
[1767529517822,0.010951,91350.0,91337.0,0.010953]
[1767529518017,0.02635099,91349.0,91337.0,0.010953]
[1767529518218,0.010951,91350.0,91337.0,0.010953]
[1767529518418,0.02635257,91349.0,91337.0,0.010953]
[1767529518618,0.010951,91350.0,91337.0,0.010953]
[1767529518820,0.03730386,91349.0,91336.0,0.010953]
[1767529519020,0.010951,91349.0,91336.0,0.010953]
[1767529520328,0.02635693,91348.0,91336.0,0.010953]
[1767529520518,0.010951,91349.0,91336.0,0.010953]
[1767529520717,0.02635719,91348.0,91337.0,0.010953]
[1767529520917,0.010951,91349.0,91337.0,0.010953]
[1767529521217,0.02635722,91348.0,91337.0,0.010953]
[1767529521526,0.010951,91352.0,91339.0,0.010953]
[1767529521726,0.02636004,91351.0,91339.0,0.010953]
[1767529521926,0.02636004,91350.0,91339.0,0.010953]
[1767529522228,0.02636004,91349.0,91339.0,0.010953]
[1767529522428,0.02636004,91348.0,91337.0,0.010953]
[1767529522623,0.010951,91350.0,91337.0,0.010953]
[1767529522820,0.02636228,91349.0,91337.0,0.010953]
[1767529523023,0.02636228,91348.0,91337.0,0.010953]
[1767529523224,0.010951,91350.0,91337.0,0.010953]
[1767529523528,0.010951,91352.0,91339.0,0.00995408]
[1767529523730,0.02636432,91351.0,91339.0,0.00995408]
[1767529524022,0.010951,91352.0,91338.0,0.09076286]
[1767529524222,0.02636432,91351.0,91338.0,0.09076286]
[1767529524528,0.02636432,91350.0,91338.0,0.09076286]
[1767529524724,0.010951,91352.0,91339.0,0.02090708]
[1767529524929,0.09312,91361.0,91343.0,0.10071694]
[1767529525224,0.1023383,91361.0,91343.0,0.10071694]
[1767529525431,0.0092183,91360.0,91343.0,0.09076286]
[1767529525618,0.0092183,91360.0,91344.0,0.010952]
[1767529525821,0.010951,91355.0,91343.0,0.09076286]
[1767529526528,0.01095,91360.0,91344.0,0.010952]
[1767529527230,0.01095,91364.0,91350.0,0.010951]
[1767529528324,0.010949,91367.0,91352.0,0.010951]
[1767529529226,0.010949,91370.0,91354.0,0.010951]
[1767529529732,0.010949,91370.0,91354.0,0.0208002]
[1767529529924,0.010949,91373.0,91356.0,0.0208002]
[1767529531020,0.010949,91373.0,91357.0,0.00981071]
[1767529531231,0.010949,91373.0,91358.0,0.02076071]
[1767529531644,0.010949,91373.0,91358.0,0.01095]
[1767529531950,0.010949,91371.0,91357.0,0.09420341]
[1767529532352,0.010949,91369.0,91357.0,0.09420341]
[1767529532652,0.01152619,91379.0,91361.0,0.09420341]
[1767529532840,0.0131367,91379.0,91364.0,0.00981071]
[1767529533044,0.0131367,91379.0,91367.0,0.00981071]
[1767529533250,0.0131367,91379.0,91369.0,0.00978838]
[1767529533449,0.010948,91377.0,91369.0,0.00978838]
[1767529533651,0.010948,91375.0,91368.0,0.09420341]
[1767529533950,0.010948,91375.0,91366.0,0.0096918]
[1767529534156,0.010948,91375.0,91363.0,0.18585283]
[1767529534351,0.010948,91375.0,91363.0,0.19554463]
[1767529534855,0.010949,91371.0,91363.0,0.09312]
[1767529535241,0.0092111,91374.0,91354.0,0.010951]
[1767529535448,0.0092111,91372.0,91355.0,0.09308]
[1767529535756,0.010949,91368.0,91356.0,0.09308]
[1767529536554,0.0092111,91371.0,91352.0,0.09273283]
[1767529536755,0.01095,91362.0,91353.0,0.09308]
[1767529537052,0.10558402,91367.0,91350.0,0.00016425]
[1767529537354,0.01095,91358.0,91351.0,0.09308]
[1767529537752,0.01095,91361.0,91351.0,0.09308]
[1767529538254,0.010951,91353.0,91350.0,2.5e-07]
[1767529538557,0.0092111,91357.0,91342.0,0.09308]
[1767529538558,0.010951,91350.0,91342.0,0.09308]
[1767529539148,0.010951,91353.0,91342.0,0.09308]
[1767529539750,0.0092111,91356.0,91342.0,0.09308]
[1767529539751,0.0201621,91356.0,91342.0,0.09308]
[1767529539954,0.010951,91354.0,91342.0,0.09308]
[1767529540751,0.010951,91357.0,91342.0,0.09308]
[1767529542360,0.0092111,91360.0,91342.0,0.09308]
[1767529543061,0.01095,91359.0,91342.0,0.09308]
[1767529543252,0.01095,91357.0,91343.0,0.010952]
[1767529543456,0.0092111,91360.0,91342.0,0.1027718]
[1767529543761,0.0201611,91360.0,91342.0,0.1027718]
[1767529544266,0.01095,91360.0,91347.0,0.010952]
[1767529544456,0.01095,91360.0,91344.0,0.010952]
[1767529544655,0.01095,91360.0,91346.0,0.010952]
[1767529546263,0.11653402,91362.0,91342.0,0.19550463]
[1767529546561,0.01095,91360.0,91346.0,0.010952]
[1767529549171,0.01095,91358.0,91343.0,0.010952]
[1767529549954,0.10558402,91362.0,91343.0,0.010952]
[1767529550160,0.01095,91361.0,91343.0,0.010952]
[1767529550472,0.01095,91361.0,91347.0,0.010952]
[1767529550970,0.10558402,91362.0,91349.0,0.010951]
[1767529551570,0.01095,91363.0,91349.0,0.010951]
[1767529551770,0.02606154,91362.0,91349.0,0.010951]
[1767529551972,0.01095,91363.0,91349.0,0.010951]
[1767529552170,0.02606155,91362.0,91351.0,0.010951]
[1767529552362,0.01095,91363.0,91351.0,0.010951]
[1767529552562,0.02606564,91362.0,91351.0,0.010951]
[1767529552772,0.01095,91363.0,91351.0,0.010951]
[1767529552970,0.02606564,91362.0,91351.0,0.010951]
[1767529553273,0.0092111,91364.0,91351.0,0.010951]
[1767529553476,0.02607048,91363.0,91353.0,0.010951]
[1767529553667,0.02607048,91362.0,91353.0,0.010951]
[1767529553872,0.01111416,91365.0,91353.0,0.010951]
[1767529554174,0.0260707,91364.0,91353.0,0.010951]
[1767529554373,0.0260707,91363.0,91353.0,0.010951]
[1767529554674,0.0260707,91362.0,91351.0,0.010951]
[1767529554974,0.02032526,91365.0,91351.0,0.010951]
[1767529555272,0.02607554,91364.0,91351.0,0.010951]
[1767529555462,0.02607554,91363.0,91353.0,0.010951]
[1767529555659,0.02607554,91362.0,91353.0,0.010951]
[1767529555865,0.00016416,91365.0,91355.0,0.010951]
[1767529556065,0.02595363,91364.0,91355.0,0.010951]
[1767529556264,0.02595363,91363.0,91355.0,0.010951]
[1767529556474,0.00016416,91365.0,91353.0,0.010951]
[1767529556673,0.0259604,91364.0,91353.0,0.010951]
[1767529556872,0.0259604,91363.0,91353.0,0.010951]
[1767529557073,0.00016416,91365.0,91353.0,0.010951]
[1767529557279,0.0259604,91364.0,91353.0,0.010951]
[1767529557572,0.00016416,91365.0,91360.0,0.01095]
[1767529557773,0.010949,91374.0,91360.0,0.01095]
[1767529558770,0.1132391,91376.0,91362.0,0.01095]
[1767529558970,0.010948,91374.0,91362.0,0.01095]
[1767529559371,0.0092111,91376.0,91362.0,0.01095]
[1767529560965,0.0021887,91379.0,91362.0,0.09609093]
[1767529561169,0.0021887,91379.0,91367.0,0.010949]
[1767529561580,0.0021887,91379.0,91366.0,0.09603485]
[1767529561874,0.0021887,91379.0,91367.0,0.09279777]
[1767529562075,0.0021887,91379.0,91369.0,0.010949]
[1767529562376,0.0021887,91379.0,91367.0,0.09603485]
[1767529562680,0.0021887,91379.0,91373.0,0.010949]
[1767529563271,0.10304661,91388.0,91375.0,0.010948]
[1767529563869,0.10304661,91388.0,91376.0,0.010948]
[1767529564975,0.00996661,91391.0,91373.0,0.00358875]
[1767529565173,0.02091261,91394.0,91374.0,0.09645668]
[1767529565379,0.010946,91394.0,91376.0,0.09645668]
[1767529566178,0.10121085,91396.0,91376.0,0.09645668]
[1767529566384,0.010946,91393.0,91376.0,0.10740468]
[1767529566777,0.010946,91393.0,91378.0,0.010948]
[1767529567685,0.00996661,91395.0,91376.0,0.09645668]
[1767529569387,0.010947,91390.0,91376.0,0.09645668]
[1767529569586,0.010947,91386.0,91373.0,0.09324416]
[1767529571186,0.010947,91390.0,91374.0,0.010948]
[1767529571791,0.010947,91390.0,91374.0,0.01475455]
[1767529571983,0.010947,91390.0,91376.0,0.010948]
[1767529572792,0.010946,91391.0,91382.0,0.00380655]
[1767529573192,0.010946,91394.0,91381.0,0.09279777]
[1767529573895,0.010946,91392.0,91378.0,0.00399846]
[1767529574391,0.010946,91392.0,91378.0,0.01494646]
[1767529574590,0.010946,91398.0,91380.0,0.09679623]
[1767529574886,0.010946,91396.0,91381.0,0.010948]
[1767529575587,0.00996661,91398.0,91385.0,0.010947]
[1767529575780,0.03572236,91397.0,91382.0,0.010947]
[1767529575977,0.00996661,91397.0,91382.0,0.010947]
[1767529576194,0.010946,91396.0,91382.0,0.010947]
[1767529576486,0.010946,91394.0,91379.0,0.010948]
[1767529577188,0.01013077,91396.0,91376.0,0.01550616]
[1767529577490,0.00996661,91394.0,91378.0,0.010948]
[1767529577680,0.010946,91392.0,91375.0,0.10374577]
[1767529578396,0.010947,91390.0,91375.0,0.10374577]
[1767529578884,0.00996661,91385.0,91373.0,0.09324416]
[1767529579455,0.010948,91381.0,91373.0,0.09324416]
[1767529580291,0.010947,91384.0,91373.0,0.09324416]
[1767529580692,0.010948,91382.0,91373.0,0.09324416]
[1767529581900,0.010948,91381.0,91373.0,0.09324416]
[1767529586598,0.010948,91379.0,91373.0,0.09324416]
[1767529587912,0.010948,91382.0,91373.0,0.09324416]
[1767529590006,0.00996661,91391.0,91373.0,0.09324416]
[1767529590209,0.010948,91379.0,91373.0,0.09324416]
[1767529590604,0.010948,91379.0,91373.0,0.00016416]
[1767529591598,0.010947,91382.0,91373.0,0.00016416]
[1767529591803,0.00909322,91389.0,91373.0,0.00016416]
[1767529592110,0.010947,91390.0,91373.0,0.00016416]
[1767529592314,0.02600166,91389.0,91373.0,0.00016416]
[1767529592515,0.010948,91382.0,91373.0,0.00016416]
[1767529593209,0.010947,91386.0,91373.0,0.00016416]
[1767529594310,0.010947,91386.0,91373.0,0.01111316]
[1767529595799,0.010947,91389.0,91373.0,0.01111316]
[1767529596815,0.010947,91387.0,91373.0,0.01111316]
[1767529597522,0.010947,91383.0,91373.0,0.00016416]